{"text_format":"3","workbook":"xlsx","n_sheets":6,"sheets":["Log for Salgsopkald","Kontaktoplysninger for kunde","Før opkald","Første opkald","Salgsoplysninger","Opfølgning"],"not_rendered":{"defined_names":14},"read":"whole","date_system":"1900"}

{"sheet":"Log for Salgsopkald","index":0,"n_rows":13,"n_cols":7,"rows_kept":13}
[null," Virksomhedsnavn"]
[null,"Log for Salgsopkald"]
[null,"Opkaldsnr.","Kunde","Virksomhed","Dato","Klokkeslæt","Bemærkninger"]
[null,1,"Jeff Smith",{"$f":"IF(LogForSalgsopkald[[#This Row],[Kunde]]=\"\",\"\",IFERROR(VLOOKUP(LogForSalgsopkald[[#This Row],[Kunde]],Kontaktoplysninger_for_kunde[],2,0),\"Not Found\"))","v":"Proseware, Inc."},{"$f":"TODAY()-5","v":"2016-10-13"},"08:30:00"]
[null,2,"Radim Petratur",{"$f":"IF(LogForSalgsopkald[[#This Row],[Kunde]]=\"\",\"\",IFERROR(VLOOKUP(LogForSalgsopkald[[#This Row],[Kunde]],Kontaktoplysninger_for_kunde[],2,0),\"Not Found\"))","v":"Litware, Inc."},{"$f":"TODAY()-5","v":"2016-10-13"},"09:00:00"]
[null,3,"Phyllis Harris",{"$f":"IF(LogForSalgsopkald[[#This Row],[Kunde]]=\"\",\"\",IFERROR(VLOOKUP(LogForSalgsopkald[[#This Row],[Kunde]],Kontaktoplysninger_for_kunde[],2,0),\"Not Found\"))","v":"Northwind Traders"},"2016-10-13","09:30:00"]
[null,4,"Aaron Nicholls",{"$f":"IF(LogForSalgsopkald[[#This Row],[Kunde]]=\"\",\"\",IFERROR(VLOOKUP(LogForSalgsopkald[[#This Row],[Kunde]],Kontaktoplysninger_for_kunde[],2,0),\"Not Found\"))","v":"Lucerne Publishing"},"2016-10-13","10:00:00"]
[null,5,"Brian Welcker",{"$f":"IF(LogForSalgsopkald[[#This Row],[Kunde]]=\"\",\"\",IFERROR(VLOOKUP(LogForSalgsopkald[[#This Row],[Kunde]],Kontaktoplysninger_for_kunde[],2,0),\"Not Found\"))","v":"Margie's Travel"},"2016-10-13","10:30:00"]
[null,6,"Jeff Smith",{"$f":"IF(LogForSalgsopkald[[#This Row],[Kunde]]=\"\",\"\",IFERROR(VLOOKUP(LogForSalgsopkald[[#This Row],[Kunde]],Kontaktoplysninger_for_kunde[],2,0),\"Not Found\"))","v":"Proseware, Inc."},{"$f":"TODAY()-3","v":"2016-10-15"},"11:00:00"]
[null,7,"Radim Petratur",{"$f":"IF(LogForSalgsopkald[[#This Row],[Kunde]]=\"\",\"\",IFERROR(VLOOKUP(LogForSalgsopkald[[#This Row],[Kunde]],Kontaktoplysninger_for_kunde[],2,0),\"Not Found\"))","v":"Litware, Inc."},{"$f":"TODAY()-3","v":"2016-10-15"},"11:30:00"]
[null,8,"Jeff Smith",{"$f":"IF(LogForSalgsopkald[[#This Row],[Kunde]]=\"\",\"\",IFERROR(VLOOKUP(LogForSalgsopkald[[#This Row],[Kunde]],Kontaktoplysninger_for_kunde[],2,0),\"Not Found\"))","v":"Proseware, Inc."},{"$f":"TODAY()-1","v":"2016-10-17"},"12:00:00"]
[null,9,"Brian Welcker",{"$f":"IF(LogForSalgsopkald[[#This Row],[Kunde]]=\"\",\"\",IFERROR(VLOOKUP(LogForSalgsopkald[[#This Row],[Kunde]],Kontaktoplysninger_for_kunde[],2,0),\"Not Found\"))","v":"Margie's Travel"},{"$f":"TODAY()-1","v":"2016-10-17"},"12:30:00"]
[null,10,"Brian Welcker",{"$f":"IF(LogForSalgsopkald[[#This Row],[Kunde]]=\"\",\"\",IFERROR(VLOOKUP(LogForSalgsopkald[[#This Row],[Kunde]],Kontaktoplysninger_for_kunde[],2,0),\"Not Found\"))","v":"Margie's Travel"},{"$f":"TODAY()","v":"2016-10-18"},"13:00:00"]

{"sheet":"Kontaktoplysninger for kunde","index":1,"n_rows":8,"n_cols":8,"rows_kept":8}
[null,{"$f":"FirmaNavn","v":" Virksomhedsnavn"}]
[null,"Kontaktoplysninger for kunde"]
[null,"Kundenavn","Virksomhedsnavn","Adresse","By, postnummer","Primær telefon","Sekundær telefon","Mail"]
[null,"Radim Petratur","Litware, Inc.","100 Main St","Cherrytown, NH 123456","(541) 555-0135","(541) 555-0136","radim@litwareinc.com"]
[null,"Aaron Nicholls","Lucerne Publishing","567 Second Ave","Spaulding, NY 23456","(425) 555-0198","(425) 555-0199","aaron@lucernepublishing.com"]
[null,"Brian Welcker","Margie's Travel","987 Orange St","Mountain View, IL 34567","(888) 555-0125","(888) 555-0126","brian@margiestravel.com"]
[null,"Phyllis Harris","Northwind Traders","890 N 3rd Ave","Chatham, CA 45678","(541) 555-0175","(541) 555-0176","phyllis@northwindtraders.com"]
[null,"Jeff Smith","Proseware, Inc.","123 Major Dr","Shelbyville, MA 56789","(509) 555-0150","(509) 555-0151","jeff@proseware.com"]

{"sheet":"Før opkald","index":2,"n_rows":13,"n_cols":3,"rows_kept":13}
[null,{"$f":"FirmaNavn","v":" Virksomhedsnavn"}]
[null,"Tjekliste for salgsopkald"]
[null,"Afkrydsningsfelt","Før opkald"]
[null,null,"Gennemgå historik for kunde"]
[null,null,"Gennemgå arbejdsgiverhistorik for kunde"]
[null,null,"Gennemse prioriteter og salgsstrategi"]
[null,null,"Tilføj element"]
[null,null,"Tilføj element"]
[null,null,"Tilføj element"]
[null,null,"Tilføj element"]
[null,null,"Tilføj element"]
[null,null,"Tilføj element"]
[null,null,"Tilføj element"]

{"sheet":"Første opkald","index":3,"n_rows":13,"n_cols":3,"rows_kept":13}
[null,{"$f":"FirmaNavn","v":" Virksomhedsnavn"}]
[null,"Tjekliste for salgsopkald"]
[null,"Afkrydsningsfelt","Første opkald"]
[null,null,"Direkte opkald til rette vedkommende"]
[null,null,"Klar introduktion"]
[null,null,"Tilføj element"]
[null,null,"Tilføj element"]
[null,null,"Tilføj element"]
[null,null,"Tilføj element"]
[null,null,"Tilføj element"]
[null,null,"Tilføj element"]
[null,null,"Tilføj element"]
[null,null,"Tilføj element"]

{"sheet":"Salgsoplysninger","index":4,"n_rows":13,"n_cols":3,"rows_kept":13}
[null,{"$f":"FirmaNavn","v":" Virksomhedsnavn"}]
[null,"Tjekliste for salgsopkald"]
[null,"Afkrydsningsfelt","Salgsoplysninger"]
[null,null,"Klar og overbevisende introduktion til produktet/tjenesten"]
[null,null,"Få styr på alle de grundlæggende funktioner"]
[null,null,"Omtal tilstedeværelse på internettet (f.eks. webstedet, sociale netværk)"]
[null,null,"Tilføj element"]
[null,null,"Tilføj element"]
[null,null,"Tilføj element"]
[null,null,"Tilføj element"]
[null,null,"Tilføj element"]
[null,null,"Tilføj element"]
[null,null,"Tilføj element"]

{"sheet":"Opfølgning","index":5,"n_rows":13,"n_cols":3,"rows_kept":13}
[null,{"$f":"FirmaNavn","v":" Virksomhedsnavn"}]
[null,"Tjekliste for salgsopkald"]
[null,"Afkrydsningsfelt","Opfølgningsoplysninger"]
[null,null,"Kontaktoplysninger for kunde"]
[null,null,"Personlige oplysninger om kunde"]
[null,null,"Indstillinger for kunde"]
[null,null,"Kontakt på andet tidspunkt?"]
[null,null,"Gennemført salg?"]
[null,null,"Tilføj element"]
[null,null,"Tilføj element"]
[null,null,"Tilføj element"]
[null,null,"Tilføj element"]
[null,null,"Tilføj element"]